[Event "10th Iberoamericano-ch 2024"]
[Site "Linares"]
[Date "2024.09.28"]
[Round "6.7"]
[White "Veiga, Jose Francisco R P N"]
[Black "Henriquez Villagra, Cristobal"]
[Result "0-1"]
[Annotator "TA"]
[ECO "B22"]
[WhiteElo "2404"]
[BlackElo "2604"]
[PlyCount "98"]
[EventDate "2024.09.25"]
[EventType "swiss"]
[EventCountry "ESP"]
[SourceTitle "playchess.com"]
[Source "ChessBase"]
[SourceQuality "1"]
[TimeControl "5400+30"]

{[%evp 12,98,2,16,22,19,25,18,99,100,131,99,100,105,94,98,100,66,69,70,68,62,66,60,58,57,64,64,62,49,60,26,46,15,16,0,0,8,7,-31,-41,-26,19,16,63,66,33,9,4,0,0,0,3,0,0,0,0,0,0,0,0,0,15,0,0,0,0,0,0,0,0,-28,-8,-84,-74,-83,-70,-101,-93,-262,-262,-237,-114,-271,-288,-258,-287,-459,-451]} 1. e4 {[%emt 0:02:19]} c5 {[%emt 0:05:07]} 2. c3 {[%emt 0:00:25]} Nf6 {[%emt 0:01:54]} 3. e5 {[%emt 0:00:19]} Nd5 {[%emt 0:00:04]} 4. Nf3 {[%emt 0:00:15]} Nc6 {[%emt 0:01:08]} 5. Bc4 {[%emt 0:01:21][%cal Bf1c4,Bc4b3,Bb3c2][%mdl 32]} Nb6 {[%emt 0:04:39]} 6. Bb3 {[%emt 0:00:24]} d5 {[%emt 0:00:41]} 7. exd6 {[%emt 0:03:08]} e6 {[%emt 0:09:38]} 8. O-O Bxd6 {[%emt 0:01:45]} 9. d4 {[%emt 0:01:26]} c4 {[%emt 0:08:08]} (9... O-O $11) 10. Bc2 $16 {[%emt 0:00:27]} Ne7 {[%emt 0:00:39]} 11. Re1 {[%emt 0:04:45]} Qc7 {[%emt 0:11:22]} 12. Nbd2 {[%emt 0:02:15][%cal Bb1d2,Bd2e4,Be4g3,Bg3h5][%mdl 32]} Ned5 {[%emt 0:03:19]} 13. Ne4 {[%emt 0:01:18]} Be7 {[%emt 0:00:04]} 14. Ng3 {[%emt 0:15:23]} O-O {[%emt 0:08:14]} 15. Ne5 {[%emt 0:05:58]} f5 {[%emt 0:01:31]} 16. Qe2 {[%emt 0:02:46]} Bf6 {[%emt 0:02:01]} 17. Nh5 {[%emt 0:03:25]} Bxe5 {[%emt 0:01:30]} 18. Qxe5 {[%emt 0:05:17]} Qxe5 {[%emt 0:00:07]} 19. Rxe5 {[%emt 0:00:04]} Bd7 {[%emt 0:01:33]} 20. Bd2 {[%emt 0:00:59]} g6 {[%emt 0:02:25]} 21. Ng3 {[%emt 0:00:47]} Kf7 {[%emt 0:00:21]} 22. Rae1 {[%emt 0:01:06]} Rfe8 {[%emt 0:00:36]} 23. f3 {[%emt 0:03:37]} Ba4 {[%emt 0:03:45]} 24. Bb1 {[%emt 0:03:21]} a5 {[%emt 0:00:20]} (24... Nd7 $5) 25. Nh1 {[%emt 0:02:04]} Nd7 {[%emt 0:06:19]} 26. R5e2 {[%emt 0:00:07]} Ra6 {[%emt 0:00:03]} 27. Nf2 {[%emt 0:01:07]} Kg7 {[%emt 0:01:40]} (27... b5 $11 {might be stronger.}) 28. g4 {[%emt 0:06:32] Black must now prevent gxf5.} N7f6 {[%emt 0:01:30]} 29. h4 {[%emt 0:07:58]} Rb6 {[%emt 0:02:43]} 30. Bc1 {[%emt 0:00:24]} Kf7 {[%emt 0:05:15]} (30... Nxc3 $2 31. bxc3 Bc6 (31... Rxb1 $2 32. Bh6+ Kxh6 33. Rxb1 $18) 32. Bc2 Bxf3 33. Re5 $18) 31. Bg5 {[%emt 0:04:53]} h5 {[%emt 0:02:20]} 32. gxh5 {[%emt 0:01:05]} Nxh5 {[%emt 0:00:50]} 33. Nh3 {[%emt 0:00:04]} Bd7 {[%emt 0:00:35]} 34. Kf2 {[%emt 0:02:21]} Rh8 {[%emt 0:01:25]} 35. Bc1 {[%emt 0:01:39]} Ng7 {[%emt 0:02:46][%cal Oa5a4]} 36. Bg5 {[%emt 0:01:26]} Re8 {[%emt 0:02:07]} 37. Rg1 {[%emt 0:00:53]} (37. Nf4 {simplifies} Nxf4 38. Bxf4 Rh8 39. Bg5) 37... Nh5 {[%emt 0:00:27]} 38. Rge1 {[%emt 0:01:15]} Nhf6 {[%emt 0:01:12]} 39. Bh6 {[%emt 0:00:37]} Rh8 {[%emt 0:01:02] Active counter play!} 40. Bg5 {[%emt 0:00:03]} Ra6 {[%emt 0:00:48]} 41. Kg1 {[%emt 0:01:40]} b5 {[%emt 0:01:11]} 42. Bd2 {[%emt 0:00:18]} (42. a3 $11 {remains equal.}) 42... b4 {[%emt 0:00:50]} 43. Ng5+ {[%emt 0:00:20]} Ke7 {[%emt 0:00:03]} 44. cxb4 {[%emt 0:04:01]} axb4 {[%emt 0:00:02]} 45. b3 $2 {[%emt 0:00:12] [#]} (45. Rh2 $17) 45... c3 $19 {[%emt 0:00:58]} (45... Rxh4 46. bxc4 Nc3 47. Re5 $11) 46. Bc1 {[%emt 0:00:06]} Nh5 {[%emt 0:00:16]} (46... Rxh4 $19 {is more deadly.} 47. Bd3 Ra8 48. Nxe6 Rah8 (48... Bxe6 49. Rxe6+ Kf7 50. Bg5 $11) 49. Nf4+ Kd6 (49... Kf7 50. Bc4 $11)) 47. Kh2 $2 {[%emt 0:02:25]} (47. Bd3 $17 {is a better defense.} Rd6 48. Bc4) 47... Nhf4 {[%emt 0:00:08] A dynamic duo of knights.} 48. Rf2 {[%emt 0:01:11]} Bb5 {[%emt 0:01:04]} (48... Rxh4+ 49. Kg3 Rh5 (49... c2 50. Bxc2 Rh5 51. Bxf4 $18) 50. Bxf4 $17) 49. Bxf4 {[%emt 0:00:44]} (49. Kg3 $142 Nh5+ 50. Kh2) 49... Nxf4 {[%emt 0:00:02] Weighted Error Value: White=0.28 (precise) /Black=0.12 (very precise) .  Loses game:     	White=1     	---        Mistake:       	White=3     	Black=3      Inaccurate:     	White=6     	Black=2      OK:         	White=11    	Black=19     Best:        	---       	Black=2} ({Weaker is} 49... Rxh4+ 50. Kg3 Rxf4 51. Rd1 $17) 0-1

[Event "10th Iberoamericano-ch 2024"]
[Site "Linares"]
[Date "2024.09.28"]
[Round "6.8"]
[White "Cesar Maestre, Bernardo"]
[Black "Fier, Alexandr"]
[Result "0-1"]
[Annotator "TA"]
[ECO "B92"]
[WhiteElo "2369"]
[BlackElo "2551"]
[PlyCount "120"]
[EventDate "2024.09.25"]
[EventType "swiss"]
[EventCountry "ESP"]
[SourceTitle "playchess.com"]
[Source "ChessBase"]
[SourceQuality "1"]
[TimeControl "5400+30"]

{[%evp 31,120,4,6,9,22,25,18,10,16,14,20,19,52,42,49,59,62,56,47,43,58,12,7,6,12,27,10,18,31,20,10,14,11,15,16,0,0,0,0,0,10,0,0,0,0,0,0,0,0,0,0,0,0,0,0,0,0,0,0,-5,-7,-77,-74,-71,-73,-73,-73,-207,-182,-230,-277,-132,-8,-2955,-1898,-3244,-2002,-4133,-2562,-29965,-29971,-29970,-29972,-29975,-29976,-29976,-29977,-29977,-29977,-29980,-29980]} 1. e4 {[%emt 0:00:11]} c5 {[%emt 0:00:04]} 2. Nf3 {[%emt 0:00:30]} d6 {[%emt 0:00:03]} 3. d4 cxd4 {[%emt 0:00:05]} 4. Nxd4 {[%emt 0:00:13]} Nf6 {[%emt 0:00:15]} 5. Nc3 {[%emt 0:00:08]} a6 {[%emt 0:00:02]} 6. Be2 {[%emt 0:00:13]} e5 {[%emt 0:00:05]} 7. Nb3 {[%emt 0:00:07]} Be7 {[%emt 0:00:02]} 8. Be3 {[%emt 0:00:00]} Be6 9. f4 b5 $5 {[%emt 0:06:49][%mdl 4] Leaves trodden paths. B92: Sicilian Najdorf: 6 Be2.} 10. fxe5 $146 {[%emt 0:17:05]} ({Predecessor:} 10. O-O O-O 11. f5 Bc8 12. Nd5 Nbd7 13. Na5 Nxd5 14. Qxd5 Rb8 15. b4 Nf6 16. Qd3 {½-½ Trs,J (2138)-Kolanek,R (2275) VW-Cup11 Gr04 email 2018}) 10... dxe5 {[%emt 0:00:20]} 11. Qxd8+ {[%emt 0:00:51]} Bxd8 {[%emt 0:03:25]} 12. Nc5 {[%emt 0:07:53]} Bc8 {[%emt 0:00:10]} 13. Nd3 {[%emt 0:15:07]} Nc6 {[%emt 0:01:46]} 14. O-O-O {[%emt 0:04:41]} O-O {[%emt 0:00:17]} 15. Bf3 {[%emt 0:01:40]} Re8 {[%emt 0:01:11]} 16. Nf2 {[%emt 0:03:32]} Rb8 {[%emt 0:01:51]} 17. Nd5 {[%emt 0:01:07]} Nxd5 {[%emt 0:00:11]} 18. exd5 {[%emt 0:00:24]} Nd4 $1 {[%emt 0:00:03]} 19. Bxd4 {[%emt 0:01:09]} exd4 {[%emt 0:00:05]} 20. Rxd4 {[%emt 0:01:15]} Bb6 {[%emt 0:16:26]} 21. Re4 {[%emt 0:00:48]} Rd8 {[%emt 0:00:18]} 22. Nd3 {[%emt 0:01:59]} Bb7 {[%emt 0:00:04]} 23. Re2 {[%emt 0:04:09]} Bxd5 {[%emt 0:09:48]} 24. Bxd5 {[%emt 0:00:31]} Rxd5 {[%emt 0:00:03]} 25. Nb4 {[%emt 0:03:12]} Rdd8 $1 {[%emt 0:00:05]} 26. Nc6 {[%emt 0:10:42]} (26. Nxa6 $14 {was preferrable.} Ra8 27. Rd1) 26... Re8 $11 {[%emt 0:00:05]} 27. Rhe1 {[%emt 0:00:07]} Rxe2 {[%emt 0:00:06]} 28. Rxe2 {[%emt 0:00:03]} Ra8 {[%emt 0:00:08]} 29. c3 {[%emt 0:00:28]} g6 {[%emt 0:00:34]} 30. Kc2 {[%emt 0:00:21]} Kg7 {[%emt 0:00:03]} 31. Nb4 {[%emt 0:01:50]} Bc7 {[%emt 0:02:26]} 32. h3 {[%emt 0:00:18]} Bd6 {[%emt 0:00:03]} 33. Kb3 {[%emt 0:03:01]} a5 {[%emt 0:00:37]} 34. Nd3 {[%emt 0:00:32]} a4+ {[%emt 0:00:08]} 35. Kc2 {[%emt 0:00:05]} h5 {[%emt 0:00:04]} 36. a3 {[%emt 0:00:40]} g5 {[%emt 0:04:14]} 37. Re4 {[%emt 0:01:52]} Kf6 {[%emt 0:00:03]} 38. Ne1 {[%emt 0:02:38]} Kf5 {[%emt 0:03:31]} 39. Kd3 {[%emt 0:01:40]} g4 {[%emt 0:02:19]} 40. Nc2 {[%emt 0:01:51]} Kg5 {[%emt 0:03:26]} 41. Rd4 {[%emt 0:01:18]} Be5 {[%emt 0:00:05]} 42. Rd5 {[%emt 0:00:48]} f6 {[%emt 0:00:04]} 43. hxg4 {[%emt 0:00:37]} Kxg4 {[%emt 0:00:33]} 44. Rxb5 {[%emt 0:02:26]} Kg3 {[%emt 0:00:04]} 45. Ne3 {[%emt 0:00:10]} Kf2 {[%emt 0:02:07]} 46. Rb4 {[%emt 0:05:22]} (46. Rb7 $11) 46... Rd8+ $17 {[%emt 0:00:33]} 47. Ke4 {[%emt 0:00:13]} Re8 {[%emt 0:00:02]} 48. Kd3 {[%emt 0:00:50]} Bd6 {[%emt 0:07:33]} 49. Re4 {[%emt 0:00:51]} (49. Nd1+ $17 Ke1 50. Rxa4 Kxd1 51. Rh4) 49... Rxe4 $19 {[%emt 0:00:03]} 50. Kxe4 {[%emt 0:00:08] [#]} Bc5 $1 {[%emt 0:00:02]} 51. Nd5 {[%emt 0:01:28] [#]} h4 {[%emt 0:00:04]} ({Black should play} 51... Kg3 $1 $17 {Strongly threatening ...Ba7.} 52. Nf4 (52. Nxf6 $2 {perishes.} h4 $19) 52... h4) 52. Nxf6 $2 {[%emt 0:03:15][%mdl 8192]} ({Wrong is} 52. Nf4 $2 Bd6 53. c4 (53. Ng6 $2 Bg3 $19) 53... Bxf4 54. Kxf4 Kxg2 $19) (52. Kf4 $11) 52... Kxg2 $19 {[%emt 0:00:07]} 53. Nd5 {[%emt 0:01:57]} Kg3 {[%emt 0:01:01]} 54. Nf4 {[%emt 0:00:40]} Bd6 {[%emt 0:00:07]} 55. Ne2+ {[%emt 0:00:11]} Kf2 {[%emt 0:02:13]} 56. Nd4 {[%emt 0:00:14]} h3 {[%emt 0:00:04]} 57. Nf3 {[%emt 0:00:06]} Bb8 {[%emt 0:00:07]} 58. c4 {[%emt 0:00:51]} Bd6 {[%emt 0:00:04]} 59. c5 {[%emt 0:00:44]} Bxc5 {[%emt 0:00:04]} 60. Kf4 {[%emt 0:00:10]} Bd6+ {[%emt 0:00:10]} 0-1

[Event "10th Iberoamericano-ch 2024"]
[Site "Linares"]
[Date "2024.09.28"]
[Round "6.9"]
[White "Salinas Herrera, Pablo"]
[Black "Palma Villanueva, Miguel Tadeo"]
[Result "1-0"]
[Annotator "TA"]
[ECO "B23"]
[WhiteElo "2479"]
[BlackElo "2266"]
[PlyCount "101"]
[EventDate "2024.09.25"]
[EventType "swiss"]
[EventCountry "ESP"]
[SourceTitle "playchess.com"]
[Source "ChessBase"]
[SourceQuality "1"]
[TimeControl "5400+30"]

{[%evp 9,101,28,22,19,32,11,22,30,62,50,70,28,79,66,83,50,60,35,29,29,24,29,13,18,16,30,12,15,25,23,18,22,35,45,44,37,54,69,73,21,108,106,104,100,108,108,104,98,98,103,108,103,87,93,121,110,130,139,139,122,129,122,366,360,377,352,480,480,480,467,404,344,525,472,465,463,29954,29956,29958,29960,29967,29954,29966,29967,29967,29968,29966,29966,29980,29981,29981,29982,29982,29983]} 1. e4 {[%emt 0:00:04]} c5 {[%emt 0:00:12]} 2. Nc3 {[%emt 0:00:29]} e6 {[%emt 0:00:07]} 3. g3 {[%emt 0:00:59]} Nc6 {[%emt 0:00:35]} 4. Bg2 {[%emt 0:00:09]} a6 {[%emt 0:00:52]} 5. Nge2 {[%emt 0:00:09]} b5 {[%emt 0:00:11]} 6. d4 {[%emt 0:02:47]} cxd4 {[%emt 0:02:32]} 7. Nxd4 {[%emt 0:00:09]} Bb7 {[%emt 0:00:05]} 8. O-O {[%emt 0:00:08] The position is equal.} Bc5 {[%emt 0:00:02][%cal Bf8c5,Bc5b6,Bb6d4][%mdl 32]} 9. Nb3 {[%emt 0:03:54]} Bb6 {[%emt 0:10:45]} 10. Bf4 {[%emt 0:02:10]} e5 {[%emt 0:08:32]} (10... Nge7 $11 {keeps the balance.}) 11. Bd2 $16 {[%emt 0:01:06]} Nf6 {[%emt 0:02:16]} 12. a4 {[%emt 0:00:16]} O-O {[%emt 0:09:27]} 13. Bg5 {[%emt 0:02:18] Black must now prevent Nd5.} Nd4 {[%emt 0:04:46]} 14. Nxd4 {[%emt 0:04:53]} Bxd4 {[%emt 0:06:37]} 15. axb5 {[%emt 0:10:56]} h6 {[%emt 0:01:28]} 16. Bxf6 {[%emt 0:00:58]} Qxf6 {[%emt 0:00:06]} 17. Ne2 {[%emt 0:00:07] Hoping for Nxd4.} axb5 {[%emt 0:06:47]} 18. Rxa8 {[%emt 0:04:25]} Bxa8 {[%emt 0:01:38]} 19. Nxd4 {[%emt 0:00:59]} exd4 {[%emt 0:00:05]} 20. Qd3 {[%emt 0:00:04]} Qb6 {[%emt 0:03:26]} 21. Rd1 {[%emt 0:01:39][%cal Bf1d1,Bd1d2,Bd2d7][%mdl 32]} Rc8 {[%emt 0:00:24]} 22. h4 {[%emt 0:01:03]} Kf8 {[%emt 0:10:40]} 23. Rd2 {[%emt 0:02:33]} Bb7 {[%emt 0:09:10]} 24. Qf3 {[%emt 0:01:09]} ({Much worse is} 24. Qxd4 Qxd4 25. Rxd4 Rxc2 $11) (24. Bh3 $16) 24... Qc5 {[%emt 0:03:09] [#]} (24... b4 $11) 25. c3 $1 {[%emt 0:01:36][%mdl 512]} dxc3 {[%emt 0:05:54]} 26. Rxd7 {[%emt 0:00:05][%csl Gd7][%cal Rf3f7]} Qc4 {[%emt 0:00:03] [#] ...c2 is the strong threat.} 27. bxc3 {[%emt 0:00:09]} (27. Rxb7 $2 {too greedy.} c2 (27... cxb2 $2 28. Qa3+ Qc5 29. Qxb2 $18) 28. Kh2 (28. Qa3+ $2 Kg8 $19) 28... c1=Q $19 (28... c1=B $2 29. b3 $18)) 27... Bc6 {[%emt 0:00:10]} 28. Rd4 {[%emt 0:00:22] White is more active.} Qe6 {[%emt 0:01:00]} 29. Qd3 {[%emt 0:00:07]} Be8 {[%emt 0:01:16]} 30. Rd8 {[%emt 0:04:47]} Rxd8 {[%emt 0:05:23]} 31. Qxd8 {[%emt 0:00:06][%mdl 4096] Endgame. KQB-KQB} f6 {[%emt 0:00:49]} 32. Kh2 {[%emt 0:01:31]} Qe7 {[%emt 0:01:36]} 33. Qd4 {[%emt 0:03:13]} Bc6 {[%emt 0:02:29]} 34. f3 {[%emt 0:00:06]} Kf7 {[%emt 0:04:01]} 35. Bf1 {[%emt 0:01:27][%cal Of1b5]} g5 $2 {[%emt 0:00:43] This move loses the game for Black.} (35... Qa3 $16 36. Kg1 Kg6) 36. hxg5 $18 {[%emt 0:01:23]} hxg5 {[%emt 0:00:08] [#]} 37. Bxb5 $1 {[%emt 0:01:03][%mdl 512]} Bxb5 {[%emt 0:00:55]} (37... Bb7 38. Bd7) 38. Qd5+ {[%emt 0:00:04]} Kg7 {[%emt 0:00:26]} 39. Qxb5 {[%emt 0:00:05] KQ-KQ} Qa7 {[%emt 0:00:10]} 40. Qe2 {[%emt 0:03:19] Wards off Qf2+} Qc5 {[%emt 0:00:43]} (40... Qa1 $142 41. Qd3 Qa2+ 42. Kh3 Qe6+ 43. g4 Qc6) 41. c4 {[%emt 0:00:47]} Qa3 {[%emt 0:00:11]} 42. e5 {[%emt 0:07:12]} fxe5 {[%emt 0:00:14]} (42... f5 $18 43. Kg2 Qc1) 43. Qxe5+ {[%emt 0:00:04] White mates.} Kg6 {[%emt 0:00:05]} 44. Qe4+ {[%emt 0:00:27]} Kh6 {[%emt 0:01:06]} 45. Kh3 {[%emt 0:00:31]} Qd6 {[%emt 0:00:10]} 46. Qd5 {[%emt 0:00:18]} Qc7 {[%emt 0:01:27]} 47. c5 {[%emt 0:00:07][%cal Bc4c5,Bc5c6][%mdl 32]} Qc8+ {[%emt 0:00:06]} 48. Kg2 {[%emt 0:00:06]} Qe8 {[%emt 0:00:25]} 49. c6 {[%emt 0:01:16]} Qe2+ {[%emt 0:00:22]} 50. Kh3 {[%emt 0:00:08]} g4+ {[%emt 0:00:19]} 51. Kxg4 {[%emt 0:00:21] Weighted Error Value: White=0.06 (flawless) /Black=0.37.  Loses game:     	---       	Black=1      Mistake:       	White=1     	Black=4      Inaccurate:     	White=2     	Black=3      OK:         	White=21    	Black=12     Best:        	---       	Black=2      Brilliant:      	White=2     	---} 1-0

[Event "10th Iberoamericano-ch 2024"]
[Site "Linares"]
[Date "2024.09.28"]
[Round "6.10"]
[White "Ynojosa Aponte, Felix Jose"]
[Black "Gines Esteo, Pedro Antonio"]
[Result "0-1"]
[Annotator "ChessBase"]
[ECO "A12"]
[WhiteElo "2398"]
[BlackElo "2477"]
[PlyCount "64"]
[EventDate "2024.09.25"]
[EventType "swiss"]
[EventCountry "ESP"]
[SourceTitle "playchess.com"]
[Source "ChessBase"]
[SourceQuality "1"]
[TimeControl "5400+30"]

1. c4 {[%emt 0:00:02]} c6 {[%emt 0:03:30]} 2. b3 {[%emt 0:02:56]} d5 {[%emt 0:01:54]} 3. Nf3 {[%emt 0:01:31]} dxc4 {[%emt 0:05:34]} 4. bxc4 {[%emt 0:00:06]} e5 {[%emt 0:00:07]} 5. Qc2 {[%emt 0:15:32]} Bd6 {[%emt 0:11:30]} 6. c5 {[%emt 0:03:02]} Bc7 {[%emt 0:03:44]} 7. d3 {[%emt 0:00:17]} Nf6 {[%emt 0:05:28]} 8. Nbd2 {[%emt 0:00:12]} O-O {[%emt 0:00:44]} 9. g3 {[%emt 0:01:11]} Qe7 {[%emt 0:11:30]} 10. Bg2 {[%emt 0:03:04]} Ba5 {[%emt 0:03:39]} 11. O-O {[%emt 0:01:28]} Bb4 {[%emt 0:03:24]} 12. Nb3 {[%emt 0:04:55]} Na6 {[%emt 0:04:47]} 13. Bd2 {[%emt 0:19:34]} Bxd2 {[%emt 0:14:36]} 14. Nfxd2 {[%emt 0:00:13]} Be6 {[%emt 0:00:05]} 15. Rab1 {[%emt 0:02:05]} h5 {[%emt 0:05:01]} 16. Rfc1 {[%emt 0:03:09]} Rad8 {[%emt 0:09:12]} 17. Na5 {[%emt 0:01:51]} Bc8 {[%emt 0:01:49]} 18. Qb2 {[%emt 0:03:00]} Rd4 {[%emt 0:02:38]} 19. Qa3 {[%emt 0:08:32]} h4 {[%emt 0:02:22]} 20. Rc2 {[%emt 0:06:43]} h3 {[%emt 0:01:03]} 21. Bxh3 {[%emt 0:11:20]} Bxh3 {[%emt 0:00:27]} 22. Rxb7 {[%emt 0:00:02]} Qe6 {[%emt 0:02:46]} 23. Nab3 {[%emt 0:09:34]} Qd5 {[%emt 0:01:34]} 24. f3 {[%emt 0:00:03]} Bc8 {[%emt 0:04:05]} 25. Qxa6 {[%emt 0:00:46]} Rb4 {[%emt 0:00:47]} 26. Na5 {[%emt 0:01:13]} Bxb7 {[%emt 0:00:42]} 27. Nxb7 {[%emt 0:00:01]} Rb2 {[%emt 0:00:30]} 28. Rxb2 {[%emt 0:00:27]} Qd4+ {[%emt 0:00:01]} 29. Kf1 {[%emt 0:00:33]} Qxb2 {[%emt 0:00:02]} 30. Nc4 {[%emt 0:00:02]} Qc1+ {[%emt 0:00:16]} 31. Kf2 {[%emt 0:01:09]} Qh1 {[%emt 0:00:20]} 32. Qxc6 {[%emt 0:01:20]} Ng4+ {[%emt 0:00:10]} 0-1

[Event "10th Iberoamericano-ch 2024"]
[Site "Linares"]
[Date "2024.09.28"]
[Round "6.11"]
[White "Oro, Faustino"]
[Black "Jimenez Garcia, Emmanuel"]
[Result "1-0"]
[Annotator "ChessBase"]
[ECO "E33"]
[WhiteElo "2434"]
[BlackElo "2352"]
[PlyCount "85"]
[EventDate "2024.09.25"]
[EventType "swiss"]
[EventCountry "ESP"]
[SourceTitle "playchess.com"]
[Source "ChessBase"]
[SourceQuality "1"]
[TimeControl "5400+30"]

1. d4 {[%emt 0:01:32]} Nf6 {[%emt 0:01:12]} 2. c4 {[%emt 0:00:07]} e6 {[%emt 0:00:09]} 3. Nc3 {[%emt 0:00:07]} Bb4 {[%emt 0:00:18]} 4. Qc2 {[%emt 0:00:51]} d6 {[%emt 0:01:22]} 5. Nf3 {[%emt 0:04:43]} Nc6 {[%emt 0:02:02]} 6. a3 {[%emt 0:07:05]} Bxc3+ {[%emt 0:00:06]} 7. Qxc3 {[%emt 0:00:02]} a5 {[%emt 0:01:13]} 8. b3 {[%emt 0:00:51]} Qe7 {[%emt 0:04:45]} 9. Bb2 {[%emt 0:01:28]} O-O {[%emt 0:02:25]} 10. d5 {[%emt 0:10:09]} Nb8 {[%emt 0:01:22]} 11. dxe6 {[%emt 0:00:43]} fxe6 {[%emt 0:01:44]} 12. e3 {[%emt 0:00:20]} c5 {[%emt 0:01:44]} 13. Be2 {[%emt 0:03:35]} Nc6 {[%emt 0:00:21]} 14. O-O {[%emt 0:01:08]} e5 {[%emt 0:07:00]} 15. Nd2 {[%emt 0:08:22]} Bg4 {[%emt 0:06:02]} 16. Bd3 {[%emt 0:05:43]} Bh5 {[%emt 0:05:54]} 17. h3 {[%emt 0:04:36]} Rae8 {[%emt 0:07:35]} 18. Ne4 {[%emt 0:08:06]} Bg6 {[%emt 0:01:08]} 19. Ng3 {[%emt 0:01:50]} e4 {[%emt 0:11:49]} 20. Bc2 {[%emt 0:02:35]} b6 {[%emt 0:01:24]} 21. Rad1 {[%emt 0:02:22]} Ne5 {[%emt 0:00:20]} 22. Qd2 {[%emt 0:00:50]} Rd8 {[%emt 0:00:28]} 23. Ne2 {[%emt 0:04:42]} a4 {[%emt 0:08:26]} 24. bxa4 {[%emt 0:04:49]} Nxc4 {[%emt 0:03:54]} 25. Bb3 {[%emt 0:00:22]} Bf7 {[%emt 0:03:46]} 26. Qc2 {[%emt 0:00:22]} Nxb2 {[%emt 0:03:54]} 27. Bxf7+ {[%emt 0:00:13]} Rxf7 {[%emt 0:01:26]} 28. Qxb2 {[%emt 0:00:01]} Qc7 {[%emt 0:02:48]} 29. Rb1 {[%emt 0:03:29]} Rb8 {[%emt 0:06:07]} 30. Rfd1 {[%emt 0:06:37]} d5 {[%emt 0:00:32]} 31. Nc3 {[%emt 0:00:35]} Rd7 {[%emt 0:01:34]} 32. Qb3 {[%emt 0:01:00]} Qc6 {[%emt 0:06:10]} 33. a5 {[%emt 0:02:45]} b5 {[%emt 0:02:19]} 34. Nxb5 {[%emt 0:00:26]} Ra8 {[%emt 0:03:19]} 35. Qc3 {[%emt 0:01:01]} c4 {[%emt 0:00:01]} 36. Nd4 {[%emt 0:00:30]} Qa4 {[%emt 0:00:07]} 37. Nf5 {[%emt 0:00:56]} Qxa5 38. Qe5 {[%emt 0:02:28]} Qxa3 {[%emt 0:02:12]} 39. Ra1 {[%emt 0:00:22]} Qf8 {[%emt 0:00:12]} 40. Rxa8 {[%emt 0:00:17]} Qxa8 {[%emt 0:00:01]} 41. Rb1 {[%emt 0:00:16]} Qe8 {[%emt 0:01:20]} 42. Rb8 {[%emt 0:00:28]} Rd8 {[%emt 0:00:04]} 43. Qc7 {[%emt 0:00:09]} 1-0

[Event "10th Iberoamericano-ch 2024"]
[Site "Linares"]
[Date "2024.09.28"]
[Round "6.12"]
[White "Rodriguez Vila, Andres"]
[Black "Ladron De Guevara Pinto, Paolo"]
[Result "0-1"]
[Annotator "ChessBase"]
[ECO "C50"]
[WhiteElo "2417"]
[BlackElo "2371"]
[PlyCount "114"]
[EventDate "2024.09.25"]
[EventType "swiss"]
[EventCountry "ESP"]
[SourceTitle "playchess.com"]
[Source "ChessBase"]
[SourceQuality "1"]
[TimeControl "5400+30"]

1. e4 {[%emt 0:00:05]} e5 {[%emt 0:00:48]} 2. Nf3 {[%emt 0:00:32]} Nc6 {[%emt 0:00:06]} 3. Bc4 {[%emt 0:00:04]} Nf6 {[%emt 0:00:05]} 4. d3 {[%emt 0:00:22]} Bc5 {[%emt 0:00:12]} 5. O-O {[%emt 0:00:09]} a6 {[%emt 0:00:23]} 6. Re1 {[%emt 0:01:04]} O-O {[%emt 0:02:52]} 7. a4 {[%emt 0:00:24]} h6 {[%emt 0:02:05]} 8. Nbd2 {[%emt 0:00:11]} d6 {[%emt 0:00:59]} 9. Nf1 {[%emt 0:00:08]} Be6 {[%emt 0:07:45]} 10. Ng3 {[%emt 0:00:08]} Re8 {[%emt 0:03:43]} 11. Bxe6 {[%emt 0:00:18]} Rxe6 {[%emt 0:00:21]} 12. c3 {[%emt 0:02:35]} d5 {[%emt 0:02:40]} 13. b4 {[%emt 0:04:53]} Bf8 {[%emt 0:08:51]} 14. Rb1 {[%emt 0:00:26]} b5 {[%emt 0:04:44]} 15. Bd2 {[%emt 0:00:16]} Qd7 {[%emt 0:07:35]} 16. axb5 {[%emt 0:00:19]} axb5 {[%emt 0:00:05]} 17. Ra1 {[%emt 0:00:09]} Rxa1 {[%emt 0:09:36]} 18. Qxa1 {[%emt 0:00:03]} Qc8 {[%emt 0:00:44]} 19. h3 {[%emt 0:05:38]} dxe4 {[%emt 0:03:20]} 20. dxe4 {[%emt 0:00:33]} Qb7 {[%emt 0:03:40]} 21. Be3 {[%emt 0:14:24]} Nb8 {[%emt 0:02:56]} 22. Qb1 {[%emt 0:06:01]} Nbd7 {[%emt 0:01:03]} 23. Rd1 {[%emt 0:01:53]} c5 {[%emt 0:07:17]} 24. bxc5 {[%emt 0:00:41]} Qc6 {[%emt 0:01:21]} 25. Nd4 {[%emt 0:02:46]} exd4 {[%emt 0:02:03]} 26. cxd4 {[%emt 0:01:04]} Qa6 {[%emt 0:02:48]} 27. d5 {[%emt 0:00:09]} Re8 {[%emt 0:01:41]} 28. c6 {[%emt 0:00:49]} Nc5 {[%emt 0:05:51]} 29. f3 {[%emt 0:00:16]} Nxd5 {[%emt 0:01:09]} 30. Rxd5 {[%emt 0:01:11]} Qxc6 {[%emt 0:00:11]} 31. Nf5 {[%emt 0:00:51]} b4 {[%emt 0:02:21]} 32. Qc1 {[%emt 0:09:32]} Rc8 {[%emt 0:00:06]} 33. Kh1 {[%emt 0:04:05]} Ne6 {[%emt 0:02:14]} 34. Qxc6 {[%emt 0:00:16]} Rxc6 {[%emt 0:00:03]} 35. Rb5 {[%emt 0:00:10]} Kh7 {[%emt 0:01:55]} 36. e5 {[%emt 0:09:17]} Bc5 {[%emt 0:03:46]} 37. Rb7 {[%emt 0:04:06]} Rb6 {[%emt 0:03:29]} 38. Rxb6 {[%emt 0:10:57]} Bxb6 {[%emt 0:00:04]} 39. Bc1 {[%emt 0:02:13]} Nc5 {[%emt 0:01:32]} 40. Nd4 {[%emt 0:01:19]} Nd3 {[%emt 0:00:40]} 41. Nb3 {[%emt 0:00:14]} Nxe5 {[%emt 0:02:03]} 42. Bd2 {[%emt 0:02:18]} Nd3 {[%emt 0:00:34]} 43. g4 {[%emt 0:02:31]} Nc5 {[%emt 0:01:03]} 44. Nd4 {[%emt 0:02:50]} b3 {[%emt 0:01:01]} 45. Bc1 {[%emt 0:00:01]} Bd8 {[%emt 0:01:00]} 46. Nb5 {[%emt 0:02:12]} Na4 {[%emt 0:01:30]} 47. Na3 {[%emt 0:00:39]} Ba5 {[%emt 0:00:36]} 48. Be3 {[%emt 0:01:11]} Bb4 {[%emt 0:00:21]} 49. Nb1 {[%emt 0:00:33]} Nc3 {[%emt 0:00:15]} 50. Nd2 {[%emt 0:00:19]} b2 {[%emt 0:00:20]} 51. Bd4 {[%emt 0:00:41]} b1=Q+ {[%emt 0:00:08]} 52. Nxb1 {[%emt 0:00:03]} Nxb1 {[%emt 0:00:05]} 53. f4 {[%emt 0:00:06]} Bc3 {[%emt 0:00:26]} 54. Bc5 {[%emt 0:00:08]} g6 {[%emt 0:00:40]} 55. Kg2 {[%emt 0:00:07]} Nd2 {[%emt 0:00:06]} 56. Bf8 {[%emt 0:00:25]} Bd4 {[%emt 0:00:30]} 57. Kg3 {[%emt 0:01:05]} Bc5 {[%emt 0:00:18]} 0-1